lending/lending_fUSD_20251015
["ID","MTS","AMOUNT","RATE_DAILY","PERIOD"]
[391323860,1760527758269,-369.31826138,0.00014025,2]
[391323861,1760527760825,-250.66650259,0.00014025,2]
[391323862,1760527764011,-283.51950359,0.00014025,2]
[391323863,1760527780254,-286.02848769,0.00014025,2]
[391323864,1760527781643,-280.24649315,0.00014025,2]
[391323865,1760527783120,-350.59737714,0.00014025,2]
[391323866,1760527785712,-636.29262286,0.00014025,2]
[391323867,1760527787437,-305.9879914,0.00014025,2]
[391323868,1760527790019,-294.41032499,0.00014025,2]
[391323869,1760527790041,-54.94928461,0.0001405,2]
[391323870,1760527791561,-245.05071539,0.0001405,2]
[391323871,1760527791582,-135.58638893,0.00014074,2]
[391323872,1760527797174,-228.95976752,0.00014074,2]
[391323873,1760527798899,-369.79883816,0.00014046,2]
[391323874,1760527800836,-200.15240599,0.00014046,2]
[391323875,1760527802951,-300.0,0.00014045,2]
[391323876,1760527802977,-33.5548721,0.00014045,2]
[391323877,1760527805497,-349.57071686,0.00014045,2]
[391323878,1760527808859,-167.60418897,0.00014045,2]
[391323879,1760527825377,-225.9452009,0.00014045,2]
[391323880,1760527827422,-159.37659119,0.00014045,2]
[391323881,1760527829455,-186.88518606,0.00014045,2]
[391323886,1760527831756,10000.0,0.00030266,30]
[391323891,1760527831970,-77.06324392,0.00014045,2]
[391323892,1760527831980,-203.33103552,0.00014045,2]
[391323893,1760527831994,-96.66896448,0.00014045,2]
[391323894,1760527832003,-238.0,0.00014045,2]
[391323895,1760527832012,-359.97061753,0.00014046,2]
[391323896,1760527832024,-9773.15743979,0.00014046,2]
[391323897,1760527832049,-170.92434197,0.00014046,2]
[391323898,1760527832061,-8422.78370522,0.00014046,2]
[391323899,1760527832072,-1904.06574947,0.00014046,2]
[391323900,1760527832099,-785.8844648,0.00014046,2]
[391323901,1760527832110,-879.77684106,0.00014046,2]
[391323902,1760527832133,-788.9,0.00014046,2]
[391323903,1760527832144,-1345.0415323,0.00014046,2]
[391323904,1760527832155,-8591.32809978,0.00014046,2]
[391323905,1760527832166,-1914.75277448,0.00014046,2]
[391323906,1760527832181,-991.2973122,0.00014046,2]
[391323915,1760527833446,-290.09813136,0.00014046,2]
[391323916,1760527835553,-391.04471857,0.00014046,2]
[391323920,1760527838248,-183.79466019,0.00013663,2]
[391323923,1760527839995,-16.20533981,0.00013663,2]
[391323924,1760527840006,-404.59354979,0.00014046,2]
[391323925,1760527840017,-1122.0,0.00014046,2]
[391323926,1760527840028,-412.297774,0.00014046,2]
[391323927,1760527840039,-1913.15358973,0.00014046,2]
[391323928,1760527840048,-152617.9463268,0.00014069,2]
[391323929,1760527840058,-1475.40584355,0.00014074,2]
[391323930,1760527840067,-204.66017204,0.00014184,2]
[391323931,1760527840076,-200.19553204,0.00014217,2]
[391323932,1760527840085,-203.15143405,0.00014241,2]
[391323933,1760527840094,-177.89685993,0.00014241,2]
[391323934,1760527840103,-150.0,0.00014248,2]
[391323935,1760527840112,-322.6107,0.00014249,2]
[391323936,1760527840122,-9552.16786547,0.00014249,2]
[391323937,1760527840130,-277.35679052,0.00014249,2]
[391323938,1760527840139,-640.0,0.0001428,2]
[391323939,1760527840148,-3515.81329113,0.00014304,2]
[391323940,1760527840157,-640.0,0.0001432,2]
[391323941,1760527840166,-640.0,0.00014398,2]
[391323942,1760527840175,-168.0,0.00014413,2]
[391323943,1760527840184,-168.0,0.0001444,2]
[391323944,1760527840195,-164.72,0.0001448,2]
[391323945,1760527840204,-640.0,0.00014533,2]
[391323946,1760527840214,-640.0,0.00014543,2]
[391323948,1760527840223,-154.77803717,0.000147,2]
[391323950,1760527840232,-1262.62243636,0.000147,2]
[391323952,1760527840241,-3679.0,0.0001472,2]
[391323954,1760527840250,-1262.6224363,0.00014722,2]
[391323955,1760527840259,-1262.6224363,0.00014744,2]
[391323957,1760527840268,-154.77803713,0.0001475,2]
[391323959,1760527840277,-250.0,0.0001476,2]
[391323961,1760527840287,-1262.6224363,0.00014767,2]
[391323963,1760527840298,-500.0,0.00014773,2]
[391323965,1760527840308,-281.48,0.00014773,2]
[391323968,1760527840319,-468.37444293,0.0001478,2]
[391323970,1760527840330,-1262.6224363,0.00014789,2]
[391323972,1760527840341,-218.22397976,0.0001479,2]
[391323974,1760527840352,-151.0,0.00014797,2]
[391323976,1760527840362,-410.86162103,0.00014799,2]
[391323978,1760527840372,-500.0,0.00014799,2]
[391323981,1760527840383,-647.85608462,0.00014799,2]
[391323983,1760527840393,-182.46811023,0.00014799,2]
[391323984,1760527840403,-606.840337,0.00014799,2]
[391323987,1760527840413,-542.95067862,0.00014799,2]
[391323988,1760527840423,-500.0,0.00014799,2]
[391323989,1760527840433,-500.0,0.00014799,2]
[391323990,1760527840445,-500.0,0.00014799,2]
[391323991,1760527840454,-500.0,0.00014799,2]
[391323992,1760527840464,-177.43537931,0.00014799,2]
[391323993,1760527840473,-500.0,0.00014799,2]
[391323994,1760527840483,-500.0,0.00014799,2]
[391323995,1760527840492,-500.0,0.00014799,2]
[391323996,1760527840501,-500.0,0.00014799,2]
[391323997,1760527840511,-500.0,0.00014799,2]
[391323998,1760527840520,-500.0,0.00014799,2]
[391323999,1760527840528,-500.0,0.00014799,2]
[391324000,1760527840537,-500.0,0.00014799,2]
[391324001,1760527840547,-500.0,0.00014799,2]
[391324002,1760527840556,-353.11630141,0.00014799,2]
[391324003,1760527840565,-319.17187521,0.00014799,2]
[391324004,1760527840575,-500.0,0.00014799,2]
[391324005,1760527840584,-366.38058637,0.00014799,2]
[391324006,1760527840593,-428.30968944,0.00014799,2]
[391324007,1760527840603,-155.72143742,0.00014799,2]
[391324008,1760527840612,-500.0,0.00014799,2]
[391324009,1760527840622,-500.0,0.00014799,2]
[391324010,1760527840631,-572.20697815,0.00014799,2]
[391324011,1760527840640,-67426.12748532,0.000148,2]
[391324012,1760527840650,-849087.05368345,0.000148,2]
[391324013,1760527842234,-1.6e-07,0.000148,2]
[391324018,1760527843531,-15000.0,0.000148,2]
[391324019,1760527843546,-1096391.46421095,0.000148,2]
[391324020,1760527843558,-294.05674955,0.000148,2]
[391324021,1760527843569,-410.0,0.000148,2]
[391324026,1760527844304,-420.65030643,0.000148,2]
[391324027,1760527844316,-2078.7681227,0.000148,2]
[391324028,1760527844336,-290.90686891,0.000148,2]
[391324029,1760527844347,-48491.54083043,0.000148,2]
[391324030,1760527844399,-411.411,0.000148,2]
[391324032,1760527845812,-357016.25874153,0.000148,2]
[391324033,1760527845824,-500.0,0.000148,2]
[391324034,1760527845835,-712.74302818,0.000148,2]
[391324035,1760527845845,-154.77803713,0.000148,2]
[391324036,1760527845855,-1262.6224363,0.00014811,2]
[391324037,1760527845865,-6280.05193991,0.00014822,2]
[391324038,1760527845874,-6280.05193991,0.00014833,2]
[391324039,1760527845883,-1262.6224363,0.00014833,2]
[391324040,1760527845892,-6280.05193991,0.00014844,2]
[391324041,1760527845902,-250.0,0.00014846,2]
[391324042,1760527845912,-150.0,0.00014846,2]
[391324043,1760527845922,-2500.0,0.00014846,2]
[391324044,1760527845932,-300.0,0.00014846,2]
[391324045,1760527845942,-195.0,0.00014846,2]
[391324046,1760527845951,-2000.0,0.00014846,2]
[391324047,1760527845960,-300.0,0.00014846,2]
[391324048,1760527845970,-712.74302818,0.0001485,2]
[391324049,1760527845979,-154.77803713,0.0001485,2]
[391324050,1760527845988,-152.71595,0.0001485,2]
[391324051,1760527845997,-6280.05193991,0.00014856,2]
[391324052,1760527846006,-1262.6224363,0.00014856,2]
[391324053,1760527846015,-6280.05193991,0.00014867,2]
[391324054,1760527846024,-6280.05193991,0.00014878,2]
[391324055,1760527846033,-1262.6224363,0.00014878,2]
[391324056,1760527846042,-6280.05193991,0.00014889,2]
[391324057,1760527846051,-1583.0,0.00014896,2]
[391324058,1760527846060,-1267.0,0.00014896,2]
[391324059,1760527846069,-3407.0,0.00014896,2]
[391324060,1760527846078,-4014.0,0.00014896,2]
[391324061,1760527846088,-749.0,0.00014896,2]
[391324062,1760527846097,-164.75603574,0.000149,2]
[391324063,1760527846105,-188.33230644,0.000149,2]
[391324064,1760527846114,-160.67415124,0.000149,2]
[391324065,1760527846123,-712.74302818,0.000149,2]
[391324066,1760527846133,-6280.05193991,0.000149,2]
[391324068,1760527846142,-154.77803713,0.000149,2]
[391324070,1760527846151,-5000.0,0.000149,2]
[391324072,1760527846160,-1262.6224363,0.000149,2]
[391324073,1760527846169,-1854.0,0.000149,2]
[391324075,1760527846178,-732.37915224,0.000149,2]
[391324076,1760527846187,-236.16878463,0.00014962,2]
[391324078,1760527846197,-2212.635,0.0001497,2]
[391324079,1760527846207,-169.768,0.0001497,2]
[391324080,1760527846215,-71531.75882077,0.0001497,3]
[391324081,1760527846225,-501.84536051,0.00014973,2]
[391324082,1760527846234,-500.87459369,0.00014973,2]
[391324083,1760527846243,-500.0,0.00014973,2]
[391324084,1760527846252,-500.0,0.00014973,2]
[391324085,1760527846262,-500.0,0.00014973,2]
[391324086,1760527846271,-500.0,0.00014973,2]
[391324087,1760527846280,-500.0,0.00014973,2]
[391324088,1760527846289,-500.4497928,0.00014973,2]
[391324089,1760527846298,-500.56534583,0.00014973,2]
[391324090,1760527846307,-500.0,0.00014973,2]
[391324091,1760527846316,-500.0,0.00014973,2]
[391324092,1760527846325,-500.36994589,0.00014973,2]
[391324093,1760527846334,-500.0,0.00014973,2]
[391324094,1760527846343,-500.0,0.00014973,2]
[391324095,1760527846352,-500.0,0.00014973,2]
[391324096,1760527846361,-500.0,0.00014973,2]
[391324097,1760527846371,-415.57526627,0.00014973,2]
[391324098,1760527846380,-500.0,0.00014973,2]
[391324099,1760527846389,-168.65443042,0.00014973,2]
[391324100,1760527846399,-500.0,0.00014973,2]
[391324101,1760527846408,-500.0,0.00014973,2]
[391324102,1760527846418,-500.0,0.00014973,2]
[391324103,1760527846427,-500.0,0.00014973,2]
[391324104,1760527846436,-500.0,0.00014973,2]
[391324105,1760527846447,-500.0,0.00014973,2]
[391324106,1760527846456,-500.0,0.00014973,2]
[391324107,1760527846466,-500.0,0.00014973,2]
[391324108,1760527846477,-500.0,0.00014973,2]
[391324109,1760527846486,-501.63024808,0.00014973,2]
[391324110,1760527846495,-500.0,0.00014973,2]
[391324111,1760527846504,-500.0,0.00014973,2]
[391324112,1760527846513,-152.71595,0.0001498,2]
[391324113,1760527846522,-151.33363614,0.00014985,2]
[391324114,1760527846531,-151.0,0.00014987,2]
[391324115,1760527846540,-1309.0,0.0001499,2]
[391324116,1760527846549,-1588.0,0.0001499,2]
[391324117,1760527846558,-604.0,0.0001499,2]
[391324118,1760527846567,-816.0,0.0001499,2]
[391324119,1760527846576,-1182.0,0.0001499,2]
[391324120,1760527846585,-902.0,0.0001499,2]
[391324121,1760527846594,-2545.0,0.0001499,2]
[391324122,1760527846603,-368792.0518454,0.0001499,2]
[391324123,1760527846612,-10462.350389,0.0001499,2]
[391324124,1760527846622,-218.22397976,0.0001499,2]
[391324125,1760527846631,-151.0,0.00014997,2]
[391324126,1760527846640,-1000.0,0.00014997,2]
[391324127,1760527846649,-1000.0,0.00014997,2]
[391324128,1760527846658,-1000.0,0.00014997,2]
[391324129,1760527846667,-1000.0,0.00014997,2]
[391324130,1760527846676,-1000.0,0.00014997,2]
[391324131,1760527846685,-1000.0,0.00014997,2]
[391324132,1760527846696,-1000.0,0.00014997,2]
[391324133,1760527846705,-30486.7371305,0.00014998,2]
[391324134,1760527846714,-1627705.66505478,0.00015,2]
[391324135,1760527846723,-1089806.63463162,0.00015,2]
[391324136,1760527846742,-464.11505819,0.00015,2]
[391324137,1760527861392,200.0,0.00030266,120]
[391324138,1760527885353,-196.89628959,0.00014799,2]
[391324139,1760527887502,-100.2179383,0.00014799,2]
[391324140,1760527887526,-109.8789736,0.00014799,2]
[391324141,1760527890974,-245.73474416,0.00014799,2]
[391324142,1760527894161,-145.68857747,0.00014799,2]
[391324143,1760527894186,-33.22910866,0.00014799,2]
[391324144,1760527915283,-333.39557689,0.00014799,2]
[391324145,1760527918193,-133.37531445,0.00014799,2]
[391324146,1760527918217,-48.8373323,0.00014799,2]
[391324147,1760527920638,-148.05895745,0.00014799,2]
[391324148,1760527920662,-24.38288871,0.00014817,2]
[391324149,1760527922680,-156.45177446,0.000147,2]
[391324150,1760527925625,-211.9457027,0.000147,2]
[391324151,1760527927873,-180.72672731,0.000147,2]
[391324152,1760527945330,-162.67525584,0.000147,2]
[391324153,1760527948587,-480.0,0.00014699,2]
[391324154,1760527948607,-104.46705304,0.000147,2]
[391324155,1760527949839,-300.0,0.000147,2]
[391324156,1760527951800,-288.82585269,0.000147,2]
[391324157,1760527954181,-153.62668335,0.000147,2]
[391324158,1760527960951,-349.25698833,0.000147,2]
[391324159,1760527975306,-299.05361981,0.000147,2]
[391324160,1760527980655,-168.0,0.00014415,2]
[391324161,1760527980677,-19.12457914,0.000147,2]
[391324162,1760528020832,-300.0,0.00014699,2]
[391324163,1760528020853,-2.0,0.00014699,2]
[391324164,1760528023298,-148.0,0.00014699,2]
[391324165,1760528023322,-245.70097785,0.000147,2]
[391324166,1760528029044,-174.57519898,0.000147,2]
[391324169,1760528035381,-160.64682573,0.000147,2]
[391324170,1760528037338,-168.38930451,0.000147,2]
[391324173,1760528040367,-344.72979407,0.000147,2]
[391324174,1760528051990,-167.28672929,0.00014699,2]
[391324175,1760528053034,-132.71327071,0.00014699,2]
[391324176,1760528053060,-341.05763071,0.000147,2]
[391324177,1760528065275,-275.18382297,0.000147,2]
[391324178,1760528067758,-227.19353177,0.000147,2]
[391324179,1760528081484,-150.0,0.000146,2]
[391324180,1760528081513,-94.43402588,0.000147,2]
[391324181,1760528083907,-187.81951082,0.000147,2]
[391324183,1760528086392,-166.66,0.00014508,2]
[391324184,1760528086415,-34.42234772,0.000147,2]
[391324185,1760528088022,-224.81617703,0.000147,2]
[391324186,1760528091691,-163.67130053,0.000147,2]
[391324187,1760528093327,-131.20531476,0.000147,2]
[391324188,1760528093354,-214.94723479,0.000147,2]
[391324189,1760528094762,-180.61311178,0.000147,2]
[391324190,1760528110293,-171.33213783,0.00014699,2]
[391324191,1760528111750,-128.66786217,0.00014699,2]
[391324192,1760528111772,-95.53253592,0.00014699,2]
[391324193,1760528116800,-298.91765228,0.00014699,2]
[391324194,1760528118494,-349.90434703,0.00014699,2]
[391324195,1760528121528,-206.12852006,0.00014699,2]
[391324196,1760528123288,-164.0,0.00014699,2]
[391324197,1760528140318,-85.51694471,0.00014699,2]
[391324198,1760528140340,-102.14875637,0.00014699,2]
[391324199,1760528141824,-197.85124363,0.00014699,2]
[391324200,1760528141845,-18.63761928,0.000147,2]
[391324201,1760528155566,-334.62198553,0.000147,2]
[391324202,1760528156766,-311.15930322,0.000147,2]
[391324203,1760528163852,200.0,0.00030267,120]
[391324204,1760528170283,-150.0,0.00014699,2]
[391324205,1760528170305,-53.85238356,0.000147,2]
[391324206,1760528173755,-169.9905,0.000147,2]
[391324207,1760528176352,-26.15711644,0.000147,2]
[391324208,1760528176903,-417.83126185,0.000147,2]
[391324209,1760528178254,-197.05646547,0.000147,2]
[391324210,1760528179830,-204.28624216,0.000147,2]
[391324211,1760528185262,-398.98200939,0.000147,2]
[391324212,1760528187734,-228.36034156,0.00014541,2]
[391324213,1760528189886,-295.63965844,0.00014541,2]
[391324214,1760528189908,-57.07514032,0.000147,2]
[391324215,1760528191620,-182.57138197,0.00014563,2]
[391324216,1760528196664,-222.18500337,0.00014563,2]
[391324217,1760528202360,400.0,0.00030267,120]
[391324218,1760528202613,344.858242,0.00030267,120]
[391324219,1760528215918,-167.40642244,0.00014562,2]
[391324220,1760528218635,-161.20902467,0.00014562,2]
[391324221,1760528221926,-195.38455289,0.00014562,2]
[391324222,1760528221950,-69.41724292,0.00014563,2]
[391324223,1760528225207,-49.82637174,0.00014563,2]
[391324224,1760528225231,-293.7218538,0.00014616,2]
[391324225,1760528230281,-166.66,0.00013699,2]
[391324226,1760528230304,-46.05702174,0.00013902,2]
[391324228,1760528260395,-120.60297826,0.00013902,2]
[391324229,1760528260416,-60.97438878,0.00014013,2]
[391324230,1760528262070,-241.39494732,0.00014013,2]
[391324231,1760528263886,-180.33112792,0.00014013,2]
[391324232,1760528266306,-186.83028726,0.00014013,2]
[391324233,1760528275898,-299.68180322,0.00014013,2]
[391324234,1760528279192,-24.0474455,0.00014013,2]
[391324235,1760528279215,-166.66,0.00014104,2]
[391324236,1760528279237,-116.5775385,0.00014307,2]
[391324237,1760528283795,500.0,0.00030209,30]
[391324238,1760528283882,-50.0824615,0.00014307,2]
[391324239,1760528283902,-332.7721079,0.00014409,2]
[391324240,1760528286284,-250.0,0.00014409,2]
[391324241,1760528287818,-216.50315266,0.00014409,2]
[391324242,1760528307152,-238.86813299,0.00014409,2]
[391324243,1760528308779,-181.18192213,0.00014409,2]
[391324244,1760528310200,-319.07455646,0.00014409,2]
[391324245,1760528311632,-230.22,0.00014409,2]
[391324246,1760528315508,-406.094376,0.00014409,2]
[391324247,1760528318915,-325.28575186,0.00014409,2]
[391324248,1760528318938,-15.22379222,0.0001451,2]
[391324259,1760528331811,-151.43620778,0.0001451,2]
[391324260,1760528331833,-264.83424814,0.00014518,2]
[391324261,1760528333942,-158.6219773,0.00014518,2]
[391324262,1760528350532,-183.20918751,0.00014438,2]
[391324263,1760528353376,-124.07579649,0.00014438,2]
[391324264,1760528353396,-294.86113518,0.00014518,2]
[391324265,1760528356206,-373.39818333,0.00014518,2]
[391324266,1760528371943,-475.0,0.00014518,2]
[391324267,1760528373389,-500.0,0.00014518,2]
[391324268,1760528376867,-258.2595874,0.00014518,2]
[391324269,1760528379726,-203.94924472,0.00014518,2]
[391324270,1760528381798,500.0,0.00030209,30]
[391324271,1760528395341,-300.42281165,0.00014518,2]
[391324272,1760528399773,-229.92755288,0.00014518,2]
[391324273,1760528403770,-160.39880836,0.00014518,2]
[391324274,1760528409043,-137.60625734,0.00014518,2]
[391324275,1760528409065,-164.39374266,0.00014567,2]
[391324276,1760528412368,-30.60625734,0.00014567,2]
[391324277,1760528412392,-164.39374266,0.00014616,2]
[391324278,1760528413787,-150.0,0.00014599,2]
[391324279,1760528413812,-65.88440354,0.00014616,2]
[391324280,1760528413834,-9.97134176,0.00014685,2]
[391324281,1760528415228,-285.96282001,0.00014685,2]
[391324282,1760528417850,-240.6199804,0.00014445,2]
[391324283,1760528419766,-125.9143956,0.00014445,2]
[391324284,1760528419788,-447.38028768,0.00014685,2]
[391324285,1760528423490,-180.97229004,0.00014685,2]
[391324286,1760528423522,-28.42770996,0.00014699,2]
[391324287,1760528440390,-158.57229004,0.00014699,2]
[391324288,1760528440411,-48.31541996,0.00014699,2]
[391324289,1760528443791,-183.71229,0.00014438,2]
[391324290,1760528447650,-228.5854843,0.00014438,2]
[391324291,1760528448224,-15.25620087,0.00014699,2]
[391324293,1760528451422,-183.6694816,0.00014699,2]
[391324294,1760528453511,-52.75889757,0.00014699,2]
[391324295,1760528453534,-149.23332411,0.00014699,2]
[391324296,1760528462757,200.0,0.00030209,120]
[391324297,1760528470297,-0.76667589,0.00014699,2]
[391324298,1760528470320,-264.19962053,0.00014699,2]
[391324299,1760528472860,-35.80037947,0.00014699,2]
[391324300,1760528472882,-182.04580699,0.00014699,2]
[391324301,1760528476794,-217.7656417,0.00014699,2]
[391324302,1760528479271,-248.24443214,0.00014699,2]
[391324303,1760528483424,-416.03084172,0.00014699,2]
[391324304,1760528500352,-135.91327745,0.00014699,2]
[391324305,1760528500376,-63.04808513,0.00014699,2]
[391324306,1760528502415,-181.32137211,0.00014699,2]
[391324307,1760528504447,-55.63054276,0.00014699,2]
[391324308,1760528504467,-218.51371194,0.000147,2]
[391324309,1760528507427,-500.0,0.000147,2]
[391324310,1760528508919,-247.70256273,0.000147,2]
[391324312,1760528530529,-150.0,0.00014699,2]
[391324313,1760528530551,-392.70582956,0.000147,2]
[391324314,1760528533112,-282.39627967,0.000147,2]
[391324315,1760528535657,-337.12764239,0.000147,2]
[391324316,1760528537395,-407.98126207,0.000147,2]
[391324317,1760528539494,-113.57271164,0.000147,2]
[391324318,1760528539517,-78.32543074,0.000147,2]
[391324319,1760528540504,-116.67456926,0.000147,2]
[391324320,1760528540525,-114.07114112,0.000147,2]
[391324321,1760528542472,-232.23502087,0.000147,2]
[391324322,1760528544509,-357.41725042,0.000147,2]
[391324323,1760528560304,-277.35679052,0.00014691,2]
[391324324,1760528560326,-174.03778649,0.000147,2]
[391324325,1760528563765,-269.25428962,0.0001465,2]
[391324326,1760528566928,-152.47433698,0.0001465,2]
[391324327,1760528568584,-360.85931582,0.0001465,2]
[391324328,1760528574086,-136.31686778,0.0001465,2]
[391324329,1760528574109,-78.39385111,0.000147,2]
[391324330,1760528575230,-369.54414014,0.000147,2]
[391324331,1760528580320,-187.83020545,0.000147,2]
[391324332,1760528582255,-376.37713282,0.000147,2]
[391324334,1760528585826,-110.09347158,0.000147,2]
[391324335,1760528585848,-92.07261031,0.000147,2]
[391324336,1760528587913,-207.92738969,0.000147,2]
[391324337,1760528587934,-43.11124773,0.000147,2]
[391324338,1760528589377,-206.88875227,0.000147,2]
[391324339,1760528589398,-93.11124773,0.000147,2]
[391324340,1760528605828,-250.0,0.00013946,7]
[391324341,1760528605864,-4.43553153,0.000147,2]
[391324342,1760528607279,-97.45322074,0.000147,2]
[391324343,1760528607315,-176.36104186,0.000147,2]
[391324344,1760528612163,-196.83020587,0.000147,2]
[391324345,1760528614367,-152.3,0.000147,2]
[391324346,1760528618727,-377.86536425,0.000147,2]
[391324347,1760528622165,-281.8224263,0.000147,2]
[391324348,1760528623152,-219.53479784,0.000147,2]
[391324349,1760528625617,-171.65884178,0.000147,2]
[391324350,1760528631215,-269.97802132,0.000147,2]
[391324351,1760528651556,-300.0,0.00014699,2]
[391324352,1760528651578,-66.84721683,0.000147,2]
[391324353,1760528653041,-181.58278317,0.000147,2]
[391324354,1760528655015,-164.40781417,0.000147,2]
[391324355,1760528659304,-250.0,0.000147,2]
[391324356,1760528663063,-192.79377433,0.000147,2]
[391324357,1760528665111,-251.44,0.000147,2]
[391324359,1760528666538,-308.92491325,0.000147,2]
[391324360,1760528680336,-197.12372833,0.00013699,2]
[391324361,1760528683896,-322.48750263,0.00013699,2]
[391324362,1760528685324,-86.76876904,0.00013699,2]
[391324363,1760528685346,-562.47298513,0.000147,2]
[391324364,1760528687375,-521.53051312,0.000147,2]
[391324365,1760528687396,-60.88490754,0.000147,2]
[391324366,1760528691649,-289.01799061,0.000147,2]
[391324367,1760528693144,-200.26290007,0.000147,2]
[391324368,1760528710882,-184.80274016,0.00014626,2]
[391324369,1760528715683,-225.85574531,0.00014626,2]
[391324370,1760528718608,-78.87231353,0.00014626,2]
[391324371,1760528718630,-175.54415624,0.00014663,2]
[391324372,1760528723208,-204.5,0.00014663,2]
[391324374,1760528741387,-150.0,0.00013488,2]
[391324375,1760528741409,-148.10736602,0.00013488,2]
[391324376,1760528742877,-6.89776083,0.00013488,2]
[391324377,1760528742899,-155.20340553,0.00013488,2]
[391324378,1760528742920,-260.79839928,0.00014663,2]
[391324379,1760528747672,-158.20263632,0.00013488,2]
[391324380,1760528749960,-1.3485816,0.00013488,2]
[391324381,1760528749982,-150.00000001,0.00013488,2]
[391324382,1760528750005,-257.06141839,0.00014663,2]
[391324383,1760528751261,-500.0,0.00014663,2]
[391324386,1760528770272,-291.59,0.00014662,5]
[391324387,1760528773174,-280.51535638,0.00014662,5]
[391324388,1760528774658,-185.76654975,0.00013927,3]
[391324389,1760528777392,-221.00985748,0.00013927,3]
[391324390,1760528779571,-184.80274,0.00013927,3]
[391324391,1760528781041,-74.42085277,0.00013927,3]
[391324392,1760528781062,-124.54050981,0.00014662,5]
[391324393,1760528783103,-296.14024315,0.00014662,5]
[391324394,1760528800434,-382.71407976,0.00014662,5]
[391324395,1760528803147,-683.4498109,0.00014662,5]
[391324396,1760528803168,-1102.09602609,0.00014663,2]
[391324397,1760528803188,-300.0,0.00014699,2]
[391324398,1760528803209,-1200.0,0.00014699,2]
[391324399,1760528803229,-500.0,0.000147,2]
[391324400,1760528803250,-186.79073016,0.00014701,2]
[391324401,1760528803274,-168.0,0.00014702,2]
[391324402,1760528803295,-195.0,0.00014703,2]
[391324403,1760528803317,-300.0,0.00014703,2]
[391324404,1760528803338,-166.66,0.00014713,2]
[391324405,1760528803361,-168.0,0.00014722,2]
[391324406,1760528803383,-168.0,0.00014772,2]
[391324407,1760528803403,-1331.87811265,0.00014817,2]
[391324408,1760528808011,-244.00425033,0.00014817,2]
[391324409,1760528811647,-217.0499087,0.00014817,2]
[391324410,1760528813678,-258.3174496,0.00014817,2]
[391324413,1760528831340,-393.28380901,0.00014817,2]
[391324414,1760528832841,-216.16146108,0.00014817,2]
[391324415,1760528835350,-178.05494272,0.00014817,2]
[391324416,1760528836891,-292.18762063,0.00014817,2]
[391324417,1760528838406,-415.16748973,0.00014817,2]
[391324418,1760528840461,-277.6475955,0.00014817,2]
[391324419,1760528843357,-196.8802745,0.00014817,2]
[391324420,1760528860396,-400.55434532,0.00014817,2]
[391324421,1760528864074,-207.93908016,0.00014691,2]
[391324422,1760528868770,-69.41771036,0.00014691,2]
[391324423,1760528868793,-176.51023443,0.00014817,2]
[391324424,1760528872012,-318.82659145,0.00014817,2]
[391324425,1760528890831,-593.60334239,0.00014817,2]
[391324426,1760528892875,-228.97774558,0.00014817,2]
[391324427,1760528895484,-399.04970753,0.00014817,2]
[391324428,1760528900419,-294.48663293,0.00014817,2]
[391324429,1760528902527,-255.91598012,0.00014817,2]
[391324430,1760528904089,-2471.82451778,0.00014817,2]
[391324431,1760528920830,-596.08401988,0.00014817,2]
[391324432,1760528924385,-204.54320382,0.00014817,2]
[391324433,1760528926370,-300.0,0.00014817,2]
[391324434,1760528928542,-199.18036275,0.00014817,2]
[391324435,1760528931161,-500.0,0.00014817,2]
[391324436,1760528933221,-300.29377341,0.00014817,2]
[391324437,1760528935448,-620.41494097,0.00014817,2]
[391324438,1760528937703,-476.16166218,0.00014817,2]
[391324439,1760528940976,-152.52281191,0.00014817,2]
[391324440,1760528943581,-202.42644878,0.00014817,2]